bitfinex/quotes_ETHUSD_20241225
["timestamp","ask_amount","ask_price","bid_price","bid_amount"]
[1735122059533,0.5797,3537.5,3536.5,8.8099744]
[1735122059736,0.93789772,3537.5,3535.7,3.8327]
[1735122059936,0.0437943,3537.4,3535.8,3.0]
[1735122060105,0.5797,3537.4,3535.7,2.82825]
[1735122060304,2.8272,3537.1,3535.8,2.82818]
[1735122060505,0.5797,3537.2,3535.9,2.82812]
[1735122060753,2.87104233,3537.0,3535.8,0.13801288]
[1735122060912,2.82741,3536.8,3535.8,0.13801288]
[1735122061114,0.5797,3536.8,3535.8,0.13801288]
[1735122061409,0.5797,3536.8,3535.3,0.8327]
[1735122061410,0.04367945,3536.7,3535.4,0.13801288]
[1735122061717,0.04367945,3536.7,3535.7,2.82829]
[1735122061917,0.04367945,3536.7,3535.9,2.82811]
[1735122062112,2.82789,3536.3,3534.8,2.82895]
[1735122062346,0.5797,3536.2,3534.7,2.82903]
[1735122062529,2.82822,3535.8,3534.3,2.82934]
[1735122062731,2.82822,3535.8,3534.1,3.83321]
[1735122062929,3.169012,3535.8,3534.5,2.82924]
[1735122063160,0.340792,3535.8,3534.4,0.13800215]
[1735122063365,0.340792,3535.8,3534.4,2.96725215]
[1735122063366,0.5797,3535.8,3534.4,2.96725215]
[1735122063529,2.82854,3535.4,3534.4,0.13800215]
[1735122063730,2.82854,3535.4,3534.2,0.13800215]
[1735122063731,3.40866,3534.9,3534.2,0.13800215]
[1735122064043,0.04222339,3534.8,3534.2,0.13800215]
[1735122064411,2.87123339,3534.8,3534.1,0.2504]
[1735122064861,0.04222339,3534.8,3534.1,0.2504]
[1735122065033,0.04222339,3534.8,3534.7,2.82909]
[1735122065375,3.39e-06,3534.8,3534.7,3.394926]
[1735122065656,0.5797,3536.1,3535.2,2.82861]
[1735122066358,0.5797,3536.1,3534.7,3.53292815]
[1735122066359,0.5797,3536.1,3534.7,0.565836]
[1735122066533,0.5797,3536.1,3534.9,2.82893]
[1735122066534,0.0387698,3536.0,3534.9,2.82893]
[1735122066716,0.34465098,3535.9,3534.9,2.82893]
[1735122066934,0.3834193,3535.9,3534.9,2.82893]
[1735122067219,0.3834193,3535.9,3534.7,0.565836]
[1735122067443,0.03876832,3535.9,3534.9,2.82889]
[1735122067864,2.86692832,3535.9,3534.6,2.82911]
[1735122068074,0.5797,3535.8,3534.6,2.82911]
[1735122068215,0.5797,3535.8,3534.4,2.82933]
[1735122068416,0.38210805,3535.7,3534.1,0.2504]
[1735122068665,0.5797,3535.4,3534.1,3.07994]
[1735122068866,3.40824,3535.4,3534.1,3.07994]
[1735122069159,0.03740161,3535.3,3534.1,3.07994]
[1735122069522,2.86602161,3535.3,3534.1,0.2504]
[1735122069716,0.5797,3535.1,3534.1,0.2504]
[1735122070118,2.82907,3534.8,3534.1,0.2504]
[1735122070366,0.61581399,3535.0,3534.1,0.2504]
[1735122070572,0.03592252,3534.7,3534.1,0.2504]
[1735122070719,2.82904,3534.8,3534.1,0.2504]
[1735122070924,0.5797,3534.7,3534.1,0.2504]
[1735122071126,0.61579578,3534.7,3534.1,0.2504]
[1735122071567,2.82917,3534.6,3534.1,0.2504]
[1735122071766,0.5797,3534.3,3534.1,0.2504]
[1735122072153,0.03599073,3534.2,3534.1,0.2504]
[1735122072574,0.56139257,3535.6,3534.1,0.2504]
[1735122072737,0.0360024,3534.2,3534.1,0.2504]
[1735122072937,2.82853,3535.4,3534.1,0.2504]
[1735122073284,2.82915,3534.7,3534.1,0.2504]
[1735122073484,2.82869,3535.2,3534.1,0.2504]
[1735122073694,0.03373479,3534.6,3534.1,0.2504]
[1735122073899,2.82918,3534.6,3534.1,0.2504]
[1735122074193,2.82937,3534.4,3534.1,0.2504]
[1735122074406,0.03374034,3534.5,3534.1,0.2504]
[1735122074691,2.82883,3535.1,3534.1,0.2504]
[1735122074692,3.11564103,3534.4,3534.1,0.2504]
[1735122074899,2.82949,3534.2,3534.1,0.2504]
[1735122075245,2.86320697,3534.2,3534.1,0.2504]
[1735122075957,3.11320697,3534.2,3534.1,5.08e-06]
[1735122076174,4.03608477,3534.2,3534.1,5.08e-06]
[1735122076375,4.04736403,3534.2,3534.1,5.08e-06]
[1735122076778,3.48608477,3534.2,3534.1,5.08e-06]
[1735122078601,4.03608477,3534.2,3534.1,5.08e-06]
[1735122078744,4.28608477,3534.2,3534.1,5.08e-06]
[1735122078950,7.28608477,3534.2,3534.1,5.08e-06]
[1735122079189,0.03371697,3534.2,3534.1,5.08e-06]
[1735122079540,4.41063015,3535.4,3534.1,5.08e-06]
[1735122079541,1.57374918,3534.8,3534.1,5.08e-06]
[1735122079788,0.0325199,3534.2,3534.1,5.08e-06]
[1735122080091,0.03151019,3534.2,3534.1,5.08e-06]
[1735122080612,1.57374918,3534.8,3534.1,5.08e-06]
[1735122080774,0.03142524,3534.2,3534.1,5.08e-06]
[1735122080967,1.57374918,3534.8,3534.1,5.08e-06]
[1735122081164,0.03144406,3534.2,3534.1,5.08e-06]
[1735122081516,0.03146349,3534.2,3534.1,5.08e-06]
[1735122081693,1.57374918,3534.8,3534.1,5.08e-06]
[1735122082008,0.0314868,3534.2,3534.1,6.63877508]
[1735122082211,1.57374918,3534.8,3534.7,3.63829]
[1735122085287,1.57374918,3534.8,3534.1,4.47308259]
[1735122085455,1.57374918,3534.8,3534.4,2.8293]
[1735122085825,1.57374918,3534.8,3534.1,1.47308259]
[1735122085826,2.85964,3535.8,3534.2,0.02828923]
[1735122086100,0.285964,3535.7,3534.4,2.82929]
[1735122086308,0.0314,3535.8,3534.4,2.82929]
[1735122086611,2.82865,3535.3,3534.3,0.3903129]
[1735122086809,2.82829,3535.7,3534.1,0.80920508]
[1735122086810,0.0314,3535.5,3534.1,5.08e-06]
[1735122087153,0.25,3536.4,3535.1,0.8092]
[1735122087154,0.03061207,3535.4,3535.1,0.8092]
[1735122087316,0.03061207,3535.4,3535.3,2.82861]
[1735122087476,0.0314,3536.4,3535.1,3.63796]
[1735122087666,0.0314,3536.4,3535.1,0.8092]
[1735122087667,2.8279,3536.2,3535.1,0.8092]
[1735122087868,0.47488248,3536.3,3534.9,2.82892]
[1735122088086,0.03193804,3536.1,3534.7,0.8092]
[1735122088434,2.82798,3536.1,3534.8,2.82899]
[1735122088620,0.03211908,3536.0,3534.8,2.82899]
[1735122088778,9.08e-06,3536.0,3535.7,0.8092]
[1735122088984,0.03100615,3536.0,3535.9,5.82813]
[1735122089202,0.0314,3537.8,3536.5,0.8092]
[1735122089584,0.0314,3537.8,3536.6,2.82749]
[1735122089766,0.0314,3537.8,3536.6,0.363669]
[1735122089965,0.0314,3537.8,3536.7,0.02827199]
[1735122090166,0.0314,3537.8,3536.5,0.8092]
[1735122090627,0.0314,3537.8,3536.8,2.82736]
[1735122090983,0.0314,3537.8,3536.5,0.8092]
[1735122091187,0.02863407,3537.5,3536.5,0.8092]
[1735122091416,0.0314,3537.8,3536.8,2.8274]
[1735122092129,0.0314,3537.8,3536.6,2.82755]
[1735122092436,0.0314,3537.8,3536.5,0.8092]
[1735122092437,0.0314,3537.8,3536.7,2.82748]
[1735122093097,0.0314,3537.8,3536.6,2.82753]
[1735122093284,0.0314,3537.8,3536.7,2.82747]
[1735122094123,0.0314,3537.8,3536.9,2.82733]
[1735122094324,2.85806,3537.8,3536.6,2.82754]
[1735122094996,2.85806,3537.8,3536.5,0.8092]
[1735122095600,2.85806,3537.8,3536.5,3.63684]
[1735122095930,2.85806,3537.8,3536.6,2.82755]
[1735122096228,2.85806,3537.8,3536.5,0.8092]
[1735122096229,0.0314,3538.1,3537.1,2.82711]
[1735122096432,0.0314,3538.1,3536.7,3.191155]
[1735122096433,2.82654,3537.9,3536.7,3.191155]
[1735122096788,2.82654,3537.9,3536.7,3.2194248]
[1735122097093,2.85778,3538.1,3536.8,2.82741]
[1735122097291,2.82645,3538.0,3536.8,2.82741]
[1735122097532,0.0314,3538.1,3536.9,2.82726]
[1735122097830,2.85745,3538.5,3537.1,0.8039]
[1735122097992,0.0314,3538.5,3537.5,2.82685]
[1735122098192,0.00282,3539.5,3537.5,2.85511221]
[1735122098391,0.0314,3538.9,3537.5,2.82685]
[1735122098633,0.00282,3539.5,3538.2,0.8039]
[1735122098832,0.00282,3539.5,3538.3,0.02825696]
[1735122099326,0.38464695,3539.8,3538.8,2.82576]
[1735122099635,0.38464695,3539.8,3538.9,0.282576]
[1735122099874,0.38464695,3539.8,3538.2,0.8039]
[1735122100385,0.38464695,3539.8,3538.4,2.82613]
[1735122100585,0.38464695,3539.8,3538.9,2.82571]
[1735122100955,0.38464695,3539.8,3538.4,3.0]
[1735122101131,0.38464695,3539.8,3539.0,2.82562]
[1735122101333,0.38464695,3539.8,3538.7,0.8039]
[1735122101844,0.56636937,3540.9,3537.7,3.07665]
[1735122101845,0.1756472,3541.1,3540.7,0.8039]
[1735122102044,0.1756472,3541.1,3540.8,0.02823418]
[1735122102346,1.76319512,3542.7,3541.7,2.82347]
[1735122102543,1.76319512,3542.7,3542.3,3.0]
[1735122102742,0.3009507,3542.9,3542.4,0.8039]
[1735122102967,0.3009507,3542.9,3542.8,3.0]
[1735122103275,2.93865853,3543.4,3543.2,2.8223]
[1735122103276,1.52758853,3543.4,3543.2,2.8223]
[1735122103572,3.52639024,3543.8,3543.7,5.8219]
[1735122103775,3.52639024,3543.8,3543.3,11.117963]
[1735122103776,3.52639024,3543.8,3543.3,0.8039]
[1735122103930,0.35763902,3543.7,3542.4,0.8039]
[1735122104266,3.52639024,3543.8,3542.6,3.0]
[1735122104583,4.11412195,3544.1,3543.7,0.8039]
[1735122104811,4.11412195,3544.1,3542.8,0.25]
[1735122104812,0.1256572,3544.7,3544.6,2.82119]
[1735122104990,7.2e-06,3544.7,3544.6,6.29189719]
[1735122105130,7.2e-06,3544.7,3544.6,2.82119]
[1735122105568,7.2e-06,3544.7,3544.6,2.84939406]
[1735122106470,7.2e-06,3544.7,3544.6,5.82119]
[1735122106796,2.8196,3546.6,3544.3,0.8039]
[1735122106953,1.0261,3546.7,3544.0,1.11866486]
[1735122106954,0.7663,3546.3,3544.0,1.11866486]
[1735122107130,2.81927,3546.0,3543.6,1.11866486]
[1735122107447,3.178747,3545.9,3544.1,2.82155]
[1735122107625,0.358557,3545.9,3544.4,2.82129]
[1735122107832,3.5863,3546.1,3544.5,0.02820643]
[1735122108147,0.02869864,3546.0,3544.2,2.82148]
[1735122108331,0.02869864,3546.0,3544.3,0.02820364]
[1735122108532,2.84800864,3546.0,3544.3,0.02820364]
[1735122108758,2.82034,3545.7,3543.8,2.8218]
[1735122108960,2.82057,3545.4,3543.5,3.0]
[1735122109181,0.02850856,3545.6,3543.9,0.02820524]
[1735122109347,0.02847604,3545.3,3544.1,2.82155]
[1735122109544,0.7663,3546.1,3543.8,2.82181]
[1735122109545,2.82034,3545.7,3543.8,2.82181]
[1735122109747,0.02848287,3545.2,3543.9,0.02820531]
[1735122109976,2.82034,3545.7,3543.8,0.02820531]
[1735122110169,2.82012,3546.0,3544.0,2.82164]
[1735122110374,0.02852623,3545.6,3544.1,0.02820482]
[1735122110571,1.99827854,3547.4,3546.3,0.8019]
[1735122110907,1.99827854,3547.4,3546.5,2.81468]
[1735122111285,1.99827854,3547.4,3546.3,0.8019]
[1735122111286,1.99827854,3547.4,3546.6,2.81956]
[1735122111658,1.99827854,3547.4,3546.7,3.02818699]
[1735122111862,1.99827854,3547.4,3547.2,0.8019]
[1735122112094,1.99827854,3547.4,3546.4,3.06974]
[1735122112095,1.99827854,3547.4,3546.5,0.8019]
[1735122112313,1.99827854,3547.4,3546.9,2.81929]
[1735122112518,1.99827854,3547.4,3546.7,2.81952]
[1735122112816,1.99827854,3547.4,3546.5,0.8019]
[1735122112958,2.19810639,3547.4,3546.5,0.8019]
[1735122113155,1.02191755,3547.4,3546.5,0.8019]
[1735122113358,0.8220897,3547.4,3546.5,0.8019]
[1735122113810,0.8220897,3547.4,3546.5,0.0281875]
[1735122114512,0.8220897,3547.4,3546.0,2.82003]
[1735122114875,1.90704237,3548.3,3546.1,0.02818842]
[1735122115084,0.27482631,3548.2,3546.1,0.02818842]
[1735122115256,0.25,3548.7,3546.1,0.02818842]
[1735122115458,0.25,3548.7,3545.9,0.8019]
[1735122115459,2.81878,3547.7,3545.9,0.83008715]
[1735122115759,2.81878,3547.7,3545.9,3.65020715]
[1735122116011,2.81878,3547.7,3546.0,3.0]
[1735122116212,0.281878,3547.6,3546.1,0.02818945]
[1735122116422,2.81884,3547.6,3545.9,0.8019]
[1735122116578,2.81911,3547.3,3545.9,0.8019]
[1735122116764,2.81911,3547.3,3545.4,2.82051]
[1735122116765,0.8322,3549.4,3546.6,3.0]
[1735122116957,0.8322,3549.4,3547.8,0.8019]
[1735122117210,0.8322,3549.4,3547.9,2.84672485]
[1735122118362,0.8322,3549.4,3547.8,0.8019]
[1735122118684,0.8322,3549.4,3547.4,0.02817494]
[1735122118890,2.81765,3549.1,3547.5,2.81887]
[1735122119084,0.8322,3549.4,3547.6,0.02817691]
[1735122119085,2.81789,3548.8,3547.6,0.02817691]
[1735122119290,0.8322,3549.4,3546.8,0.83007806]
[1735122119459,2.81836,3548.2,3546.8,0.83007806]
[1735122119660,1.00972516,3548.1,3546.8,0.8019]
[1735122119860,2.81785,3548.8,3546.8,0.83008459]
[1735122120099,0.8322,3547.9,3546.2,0.8019]
[1735122120404,2.81881,3547.6,3546.2,0.8019]
[1735122120604,2.81841,3548.1,3546.2,0.8019]
[1735122120605,2.65292704,3548.1,3546.2,0.8019]
[1735122120903,2.81946,3546.8,3545.0,2.82086]
[1735122121062,2.81946,3546.8,3545.1,2.82076]
[1735122121265,3.101476,3546.7,3545.1,2.82076]
[1735122121593,0.281946,3546.7,3545.2,2.84793085]
[1735122121906,0.281946,3546.7,3545.4,2.82054]
[1735122122110,2.81892,3547.5,3545.1,2.82072]
[1735122122260,2.81964,3546.6,3545.0,0.02819499]
[1735122122460,2.81892,3547.5,3544.8,0.02819643]
[1735122122811,2.81892,3547.5,3544.7,0.8308]
[1735122122812,2.81996,3546.2,3544.7,0.8308]
[1735122122973,2.82002,3546.1,3544.7,0.8308]
[1735122123161,2.8197,3546.5,3544.8,2.82102]
[1735122123391,3.100882,3547.4,3544.7,0.8308]
[1735122123392,0.281892,3547.4,3544.7,0.8308]
[1735122123594,0.176168,3550.0,3544.7,0.8308]
[1735122123595,2.81816,3548.5,3546.0,0.25]
[1735122123833,2.81803,3548.6,3546.4,11.6297344]
[1735122124047,2.81803,3548.6,3547.0,2.81927]
[1735122124244,2.81823,3548.4,3546.8,2.81944]
[1735122124404,2.81823,3548.4,3546.9,2.81933]
[1735122124600,2.81823,3548.4,3547.0,0.02818348]
[1735122124805,0.39,3548.7,3546.6,0.02818348]
[1735122125028,2.81824,3548.4,3546.7,2.8195]
[1735122125261,0.016091,3549.0,3546.7,2.8195]
[1735122125262,0.016091,3549.0,3546.9,0.8308]
[1735122125561,0.01269666,3549.0,3547.9,3.0]
[1735122125756,0.01269666,3549.0,3548.0,0.02817553]
[1735122125906,0.01269666,3549.0,3548.1,0.8308]
[1735122126110,0.33471433,3549.0,3548.1,0.8308]
[1735122126316,0.33471433,3549.0,3546.5,3.06964]
[1735122126317,0.01269666,3549.0,3547.6,2.8188]
[1735122126542,2.83040666,3549.0,3547.6,2.8188]
[1735122126704,0.01269666,3549.0,3547.3,2.81902]
[1735122126914,2.81814,3548.5,3546.9,6.65016]
[1735122127208,0.281814,3548.4,3546.9,0.8308]
[1735122127621,2.81833,3548.2,3546.9,0.8308]
[1735122127935,0.39,3548.3,3546.9,0.8308]
[1735122128139,2.81848,3548.0,3546.5,2.81967]
[1735122128337,0.281848,3547.9,3546.6,0.02818602]
[1735122128525,0.281814,3548.4,3546.6,0.02818602]
[1735122128526,2.81842,3548.1,3546.7,2.81948]
[1735122128853,0.39,3548.0,3546.8,0.02818602]
[1735122129150,0.39,3548.0,3545.7,0.7556]
[1735122129354,2.81881,3547.6,3545.7,0.7556]
[1735122129568,0.281881,3547.5,3545.8,0.38860939]
[1735122129870,0.25,3548.6,3545.9,0.02819117]
[1735122129871,0.39,3548.6,3545.9,0.02819117]
[1735122130027,2.81874,3547.7,3546.3,2.81981]
[1735122130233,2.81874,3547.7,3545.9,0.02818966]
[1735122130234,0.39,3547.6,3545.9,0.02818966]
[1735122130457,2.81914,3547.2,3545.8,2.82022]
[1735122130618,0.320874,3547.5,3545.7,0.7556]
[1735122130812,2.81944,3546.9,3545.4,2.82055]
[1735122131112,2.81944,3546.9,3545.5,0.02819516]
[1735122131313,0.281944,3546.8,3545.6,2.82036]
[1735122131655,2.81909,3547.3,3545.4,2.82055]
[1735122131810,2.81952,3546.8,3545.4,0.02819637]
[1735122132011,2.81914,3547.2,3545.4,2.84871637]
[1735122132210,2.81888,3547.5,3545.5,0.13661605]
[1735122132451,2.81913,3547.2,3545.9,2.82013]
[1735122133179,2.81919,3547.2,3545.6,2.95694605]
[1735122133464,3.139908,3547.4,3545.6,2.98513844]
[1735122133666,2.81944,3546.8,3545.7,0.13661605]
[1735122133967,2.81946,3546.8,3545.7,0.16481273]
[1735122134168,0.281944,3546.7,3545.7,0.16481273]
[1735122134335,2.81913,3547.2,3545.9,2.82014]
[1735122134670,0.320888,3547.4,3545.8,0.13661605]
[1735122134845,3.2088,3547.6,3545.8,0.13661605]
[1735122135052,0.39,3547.6,3545.9,0.35435772]
[1735122135227,2.81939,3546.9,3545.9,0.35435772]
[1735122135418,2.81944,3546.8,3545.9,0.35435772]
[1735122135618,0.281944,3546.7,3546.0,0.13661605]
[1735122136088,2.81904,3547.3,3546.0,0.13661605]
[1735122136239,0.39,3547.6,3546.1,0.13661605]
[1735122136479,0.55,3547.2,3546.1,0.13661605]
[1735122136770,0.449,3547.1,3546.1,0.13661605]
[1735122136990,0.39,3547.3,3545.1,0.13661605]
[1735122137157,2.8197,3546.5,3545.1,2.95740605]
[1735122137509,2.81977,3546.4,3545.2,0.13661605]
[1735122138057,2.81977,3546.4,3545.2,0.1648167]
[1735122138311,0.281977,3546.3,3545.2,0.1648167]
[1735122138473,0.281977,3546.3,3545.0,3.57645]
[1735122138474,0.281977,3546.3,3545.3,0.13661605]
[1735122138671,0.39,3546.2,3545.3,0.13661605]
[1735122138875,2.82012,3546.0,3545.3,0.13661605]
[1735122139080,2.82012,3546.0,3544.7,2.8211]
[1735122139276,2.82012,3546.0,3544.8,0.0282043]
[1735122139478,0.39,3546.2,3544.8,0.0282043]
[1735122140013,0.39,3546.2,3544.9,0.13661605]
[1735122140320,2.82017,3545.9,3544.9,0.13661605]
[1735122140613,2.5700471,3545.9,3544.9,0.13661605]
[1735122140822,2.82024,3545.8,3545.0,0.13661605]
[1735122140962,0.39,3546.2,3545.0,0.13661605]
[1735122141160,2.82019,3545.9,3545.0,0.13661605]
[1735122141358,2.82,3546.1,3545.0,0.13661605]
[1735122141577,0.39,3547.3,3545.1,0.7824]
[1735122141777,2.81938,3546.9,3545.5,2.82044]
[1735122142011,0.39,3547.3,3545.1,0.7324]
[1735122142217,0.39,3547.3,3546.2,2.81987]
[1735122142607,0.39,3547.3,3546.3,35.0]
[1735122142608,2.81914,3547.2,3546.3,35.0]
[1735122142794,0.320914,3547.1,3545.3,3.0]
[1735122143004,0.39,3547.3,3545.2,0.13661605]
[1735122143201,2.81975,3546.5,3545.3,37.82061]
[1735122143516,0.39,3547.3,3545.4,0.13661605]
[1735122143517,2.81984,3546.3,3545.4,0.13661605]
[1735122143718,0.44,3546.3,3545.4,0.13661605]
[1735122143931,2.82004,3546.1,3545.1,0.13661605]
[1735122144135,0.44,3546.3,3545.1,0.08661605]
[1735122144422,2.82016,3545.9,3545.1,0.08661605]
[1735122145311,2.82016,3545.9,3544.7,3.5816443]
[1735122145474,2.82016,3545.9,3544.8,0.02820429]
[1735122145833,0.3541725,3546.2,3544.7,3.5816443]
[1735122145834,2.82047,3545.6,3544.7,0.7824]
[1735122146034,0.31025135,3545.5,3544.2,35.7824]
[1735122146215,0.55,3546.1,3544.2,35.7824]
[1735122146216,2.82037,3545.7,3544.2,0.7824]
[1735122146538,2.82084,3545.1,3543.8,2.82179]
[1735122146677,2.82084,3545.1,3543.7,0.02820906]
[1735122146678,0.44,3545.6,3544.6,2.82116]
[1735122146992,0.55,3546.0,3544.0,0.7824]
[1735122147169,2.82023,3545.8,3544.0,0.7824]
[1735122147370,0.33984344,3545.7,3544.1,2.82157]
[1735122147610,0.33984344,3545.7,3544.2,0.0141106]
[1735122147611,2.82064,3545.3,3544.2,0.0141106]
[1735122147846,2.82064,3545.3,3544.1,2.82157]
[1735122147847,2.82064,3545.3,3544.1,2.8356806]
[1735122148024,0.33984344,3545.7,3544.1,2.82157]
[1735122148332,0.00974912,3545.2,3544.2,2.57151]
[1735122148533,0.00974912,3545.2,3544.0,0.76061023]
[1735122148694,0.00974912,3545.2,3544.3,2.82141]
[1735122148930,0.00974912,3545.2,3544.2,0.9393752]
[1735122149110,0.00974912,3545.2,3544.3,2.82143]
[1735122149315,0.29278003,3545.2,3544.3,2.82143]
[1735122149520,0.29278003,3545.2,3544.3,2.77143]
[1735122149699,0.29278003,3545.2,3544.4,3.46846566]
[1735122149899,0.00974912,3545.2,3544.5,0.01410719]
[1735122150105,0.00974912,3545.2,3544.4,6.28980566]
[1735122150438,0.00974912,3545.2,3544.4,3.46846566]
[1735122150618,0.4618,3545.1,3544.4,3.46846566]
[1735122150823,0.00974912,3545.2,3544.4,3.46846566]
[1735122151183,2.8208,3545.1,3544.4,3.46846566]
[1735122151389,0.00974912,3545.2,3544.4,3.46846566]
[1735122151390,0.29278503,3545.2,3544.4,3.46846566]
[1735122151627,0.29278503,3545.2,3544.1,0.9393752]
[1735122151829,0.00974912,3545.2,3544.1,0.9393752]
[1735122152329,0.00974912,3545.2,3544.2,0.8126]
[1735122152633,0.00974912,3545.2,3544.4,2.82132]
[1735122152994,0.47154912,3545.2,3544.2,0.8126]
[1735122153197,0.47154912,3545.2,3544.2,0.82670715]
[1735122153538,0.47154912,3545.2,3544.2,3.64820715]
[1735122153960,0.80076603,3545.2,3544.5,2.3498008]
[1735122154242,3.0,3546.3,3544.6,0.01410702]
[1735122154401,2.82011,3546.0,3544.7,2.8211]
[1735122154582,2.85543614,3545.9,3544.7,2.8211]
[1735122154782,0.03525614,3545.9,3544.7,2.8211]
[1735122155012,0.03525614,3545.9,3544.3,2.3498008]
[1735122155013,2.8206,3545.4,3544.3,5.1712108]
[1735122155298,2.82066,3545.3,3544.3,2.3498008]
[1735122155767,2.82066,3545.3,3544.3,1.11866486]
[1735122155922,0.282066,3545.2,3544.3,1.11866486]
[1735122156532,0.282066,3545.2,3544.4,0.01411]
[1735122156727,2.82029,3545.8,3544.3,2.82143]
[1735122156923,2.82029,3545.8,3544.2,2.82147]
[1735122157241,2.81958,3546.7,3544.4,0.8126]
[1735122157443,3.27808,3546.7,3545.4,0.8126]
[1735122157677,0.281958,3546.6,3545.4,3.63314]
[1735122157959,0.49375194,3546.7,3545.4,3.63314]
[1735122158169,0.4585,3546.7,3545.4,3.63314]
[1735122158345,0.4585,3546.7,3545.2,2.8207]
[1735122158509,2.81994,3546.2,3545.0,3.63346]
[1735122158709,0.281994,3546.1,3545.0,3.63346]
[1735122158944,0.4585,3546.7,3545.0,0.8126]
[1735122159160,0.4585,3546.7,3546.1,2.81999]
[1735122159362,2.8192,3547.1,3545.9,2.82015]
[1735122159528,0.4585,3547.2,3546.1,2.81998]
[1735122159828,3.27767,3547.2,3546.0,2.82]
[1735122160028,0.327767,3547.1,3546.0,2.82]
[1735122160228,3.146967,3547.1,3545.8,0.8126]
[1735122160662,0.327767,3547.1,3546.2,2.8199]
[1735122160863,0.4585,3547.2,3546.2,2.8199]
[1735122161066,0.4585,3547.2,3545.8,3.63282]
[1735122161230,2.81935,3547.0,3545.9,2.82008]
[1735122161681,0.4585,3547.2,3545.9,2.82008]
[1735122161889,0.4585,3547.2,3546.2,2.81991]
[1735122162187,0.327747,3547.1,3546.2,2.81991]
[1735122162480,2.85460353,3547.0,3545.8,0.8126]
[1735122162679,0.4585,3546.9,3545.4,2.82048]
[1735122162894,2.81956,3546.7,3545.3,0.8126]
[1735122163179,0.327806,3546.6,3545.5,2.82045]
[1735122163582,0.327806,3546.6,3544.5,2.82127]
[1735122163583,0.4585,3546.4,3544.1,1.11866486]
[1735122163733,0.4585,3545.3,3544.1,1.11866486]
[1735122163933,0.327904,3545.2,3544.3,2.82142]
[1735122164155,0.327904,3545.2,3544.2,0.13773336]
[1735122164385,2.82025,3545.8,3544.5,2.82125]
[1735122164587,2.82025,3545.8,3544.2,0.13773336]
[1735122164883,3.27845,3546.2,3541.5,6.61889666]
[1735122164884,2.82011,3546.0,3544.9,2.82094]
[1735122165031,3.147855,3546.1,3545.0,0.8126]
[1735122165230,0.327845,3546.1,3545.0,0.8126]
[1735122165544,2.82,3546.1,3545.0,3.63345]
[1735122165768,2.82,3546.1,3545.0,0.8126]
[1735122166790,0.4585,3546.2,3545.0,0.8126]
[1735122167083,0.4585,3546.2,3543.7,1.40454745]
[1735122167084,0.4585,3547.3,3544.7,5.82111]
[1735122167293,5.16960327,3547.6,3546.2,0.8025]
[1735122167492,5.16960327,3547.6,3546.4,2.8197]
[1735122167493,2.35078327,3547.6,3546.4,2.8197]
[1735122167803,0.4585,3547.8,3546.4,2.8197]
[1735122168132,0.4585,3547.8,3546.3,35.0]
[1735122168458,2.81818,3548.4,3547.2,2.81911]
[1735122168762,2.35578327,3548.7,3547.4,2.81896]
[1735122168763,5.17375327,3548.7,3547.4,2.81896]
[1735122168966,2.81804,3548.6,3547.1,0.8025]
[1735122169191,0.51738233,3548.5,3547.4,2.81894]
[1735122169398,0.03522911,3548.5,3547.1,0.8025]
[1735122169570,0.03522911,3548.5,3546.1,8.8099744]
[1735122169571,2.81863,3547.9,3546.7,0.8025]
[1735122169755,2.81842,3548.1,3546.9,2.81934]
[1735122170084,2.81892,3547.5,3546.3,35.0]
[1735122170341,2.81892,3547.5,3546.1,3.62244]
[1735122170342,0.327742,3547.4,3546.1,0.8025]
[1735122170502,0.4585,3547.6,3546.2,2.81991]
[1735122170800,0.4585,3547.6,3546.1,0.8025]
[1735122170801,0.4585,3547.6,3546.4,2.81972]
[1735122170948,0.03523727,3548.1,3546.1,0.8025]
[1735122170949,0.49373727,3548.1,3546.1,0.8025]
[1735122171149,0.4585,3548.1,3546.6,2.8196]
[1735122171385,2.81867,3547.8,3546.5,2.81967]
[1735122171690,2.81867,3547.8,3546.1,0.8025]
[1735122171691,0.327684,3548.0,3546.8,2.81936]
[1735122171868,3.27691,3548.1,3546.8,2.81936]
[1735122172307,0.4585,3548.1,3546.4,2.81974]
[1735122172447,2.76849,3548.0,3546.8,2.81938]
[1735122172651,0.03523485,3547.9,3546.8,2.81938]
[1735122172900,0.32622249,3547.8,3546.1,3.62246]
[1735122173046,2.81848,3548.0,3546.6,2.81957]
[1735122173251,2.81862,3547.9,3546.6,2.81957]
[1735122173551,0.4585,3548.1,3545.8,35.0]
[1735122173552,2.8185,3548.0,3546.9,0.8025]
[1735122173787,2.81801,3548.6,3547.3,2.81902]
[1735122173986,0.03523097,3548.5,3547.3,2.81902]
[1735122174251,2.81836,3548.2,3547.0,2.81927]
[1735122174454,0.03523457,3548.6,3546.9,0.8025]
[1735122174694,2.81825,3548.3,3547.1,2.81912]
[1735122174898,3.14976646,3548.5,3547.3,2.81903]
[1735122175210,2.81817,3548.4,3547.3,2.81903]
[1735122175572,0.33166646,3548.5,3547.3,2.81903]
[1735122175790,2.81811,3548.5,3547.3,2.81903]
[1735122176006,0.4635,3548.7,3547.3,2.81903]
[1735122176206,0.4635,3548.7,3547.0,2.81921]
[1735122176207,2.81824,3548.4,3547.0,2.81921]
[1735122176419,2.81824,3548.4,3547.2,2.81911]
[1735122177205,0.4635,3548.7,3546.9,0.8025]
[1735122177206,2.85349216,3548.3,3547.1,2.81918]
[1735122177407,0.28534922,3548.2,3547.3,2.81903]
[1735122177610,0.4635,3548.7,3546.3,3.0]
[1735122177611,0.005,3548.7,3547.7,0.8025]
[1735122177855,2.81825,3548.3,3547.0,2.81923]
[1735122178018,2.81825,3548.3,3547.3,2.81904]
[1735122178019,0.4585,3548.2,3547.3,2.81904]
[1735122178312,0.336825,3548.3,3547.5,2.81886]
[1735122178462,2.82294,3548.7,3547.5,2.81886]
[1735122178862,2.81805,3548.6,3547.5,1.81886]